bitfinex/quotes_BTCUSD_20220306
["timestamp","ask_amount","ask_price","bid_price","bid_amount"]
[1646534142994,0.20749843,39514.0,39509.0,0.00387912]
[1646534143195,0.00023902,39514.0,39509.0,0.00387912]
[1646534143595,0.00023902,39514.0,39509.0,6.176e-05]
[1646534144196,0.20749843,39515.0,39509.0,6.176e-05]
[1646534144403,0.00023902,39514.0,39510.0,0.00278183]
[1646534145398,0.20749843,39515.0,39510.0,0.00278183]
[1646534145598,0.00023902,39514.0,39510.0,0.00278183]
[1646534146645,0.20749843,39515.0,39510.0,0.00278183]
[1646534146844,0.00023897,39514.0,39510.0,0.00278183]
[1646534147845,0.20749843,39515.0,39510.0,0.00278183]
[1646534148043,0.00023897,39514.0,39510.0,0.00278183]
[1646534148645,0.00023897,39514.0,39509.0,6.176e-05]
[1646534149046,0.17602921,39514.0,39509.0,6.176e-05]
[1646534149246,0.17626818,39514.0,39509.0,6.176e-05]
[1646534149445,0.00023897,39514.0,39509.0,6.176e-05]
[1646534150283,0.002,39515.0,39509.0,6.176e-05]
[1646534150478,0.00023898,39514.0,39509.0,6.176e-05]
[1646534151481,0.49417742,39516.0,39509.0,6.176e-05]
[1646534151782,0.00023898,39514.0,39509.0,6.176e-05]
[1646534152582,0.20749843,39515.0,39509.0,6.176e-05]
[1646534152781,0.00023898,39514.0,39509.0,6.176e-05]
[1646534153641,0.00023898,39514.0,39510.0,0.0027988]
[1646534153941,0.49417742,39516.0,39510.0,0.0027988]
[1646534154145,0.00023898,39514.0,39510.0,0.0027988]
[1646534154943,0.49417742,39516.0,39510.0,0.0027988]
[1646534155245,0.00023898,39514.0,39510.0,0.0027988]
[1646534156248,0.39975626,39515.0,39510.0,0.0027988]
[1646534156445,0.19555101,39512.0,39510.0,0.0027988]
[1646534156645,0.00023898,39514.0,39510.0,0.0027988]
[1646534157048,0.002,39513.0,39510.0,0.0027988]
[1646534158481,0.20845113,39514.0,39510.0,0.0027988]
[1646534158681,0.20821215,39514.0,39510.0,0.0027988]
[1646534158883,0.20821215,39514.0,39509.0,6.176e-05]
[1646534158884,0.20845113,39514.0,39509.0,6.176e-05]
[1646534159484,0.00023898,39514.0,39509.0,6.176e-05]
[1646534159887,0.20749843,39514.0,39509.0,6.176e-05]
[1646534160084,0.20773741,39514.0,39509.0,6.176e-05]
[1646534160284,0.20773741,39514.0,39509.0,0.20728435]
[1646534160486,0.19040619,39513.0,39509.0,0.20728435]
[1646534160684,0.20773741,39514.0,39509.0,0.20728435]
[1646534160885,0.00023898,39514.0,39509.0,0.20728435]
[1646534161130,0.20873741,39514.0,39509.0,0.20728435]
[1646534161331,0.00123898,39514.0,39509.0,0.20728435]
[1646534161533,0.00123898,39514.0,39509.0,0.20726575]
[1646534161730,0.15547654,39514.0,39509.0,6.176e-05]
[1646534161929,0.15547654,39514.0,39509.0,0.20726191]
[1646534162130,0.36275765,39514.0,39509.0,6.176e-05]
[1646534162331,0.15447654,39514.0,39509.0,6.176e-05]
[1646534162732,0.15447654,39514.0,39509.0,1.76e-06]
[1646534162733,0.20752492,39513.0,39509.0,1.76e-06]
[1646534164535,0.20752492,39513.0,39511.0,0.00125539]
[1646534164734,0.37129178,39516.0,39511.0,0.00125539]
[1646534164735,0.20752492,39514.0,39511.0,0.00125539]
[1646534164981,0.2077639,39514.0,39511.0,0.00125539]
[1646534165583,0.2107639,39514.0,39511.0,0.00125539]
[1646534165880,0.21052492,39514.0,39511.0,0.00125539]
[1646534166082,0.36271271,39514.0,39511.0,0.00125539]
[1646534166280,0.2107639,39514.0,39511.0,0.00125539]
[1646534166880,0.2077639,39514.0,39511.0,0.00125539]
[1646534167082,0.20752492,39515.0,39511.0,0.00125539]
[1646534167281,0.00023898,39514.0,39511.0,0.00125539]
[1646534168281,0.20752492,39515.0,39511.0,0.00125539]
[1646534168481,0.00011572,39514.0,39511.0,0.00125539]
[1646534169335,0.20752492,39515.0,39511.0,0.00125539]
[1646534169534,0.00011572,39514.0,39511.0,0.00125539]
[1646534170135,0.00011572,39514.0,39511.0,1.00125539]
[1646534170340,0.00011572,39514.0,39512.0,0.00126653]
[1646534170640,0.20752492,39515.0,39512.0,0.00126653]
[1646534170940,0.00011572,39514.0,39512.0,0.00126653]
[1646534171538,0.20764064,39514.0,39512.0,0.00126653]
[1646534171736,0.20752492,39513.0,39512.0,0.00126653]
[1646534172996,0.376759,39514.0,39512.0,0.00126653]
[1646534173196,0.00625473,39514.0,39512.0,0.00126653]
[1646534173397,0.376759,39513.0,39512.0,0.00126653]
[1646534173794,0.20753741,39513.0,39512.0,0.00126653]
[1646534175899,0.00625473,39514.0,39512.0,0.00126653]
[1646534176133,0.376759,39513.0,39512.0,0.00126653]
[1646534176334,0.20754476,39513.0,39512.0,0.00126653]
[1646534177434,0.00624714,39514.0,39512.0,0.00126653]
[1646534177435,0.2137919,39514.0,39512.0,0.00126653]
[1646534177635,0.00624714,39514.0,39512.0,0.00126653]
[1646534177934,0.006,39514.0,39512.0,0.00126653]
[1646534178434,0.20779189,39515.0,39512.0,0.00126653]
[1646534179037,0.20754476,39514.0,39512.0,0.00126653]
[1646534179439,0.376759,39513.0,39512.0,0.00126653]
[1646534179636,0.58430376,39513.0,39512.0,0.00126653]
[1646534179879,0.20754476,39513.0,39511.0,1.0]
[1646534182783,0.20778286,39514.0,39511.0,1.0]
[1646534183632,0.20754476,39513.0,39511.0,1.0]
[1646534184533,0.20778347,39514.0,39511.0,1.0]
[1646534185132,0.20754476,39514.0,39511.0,1.0]
[1646534185334,0.20778347,39514.0,39511.0,1.0]
[1646534186233,0.20754476,39514.0,39511.0,1.0]
[1646534186433,0.20778347,39514.0,39511.0,1.0]
[1646534186633,0.20772042,39514.0,39511.0,1.20722663]
[1646534187482,0.20748171,39514.0,39511.0,1.20722663]
[1646534187781,0.20772038,39514.0,39511.0,1.0]
[1646534188686,0.20748171,39514.0,39511.0,1.0]
[1646534188882,0.20772038,39514.0,39511.0,1.0]
[1646534189882,0.20748171,39514.0,39511.0,1.0]
[1646534190083,0.00023867,39514.0,39511.0,1.0]
[1646534191140,0.25940616,39516.0,39511.0,1.0]
[1646534191348,0.00023867,39514.0,39511.0,1.0]
[1646534192142,0.25940616,39516.0,39511.0,1.0]
[1646534192540,0.00023867,39514.0,39511.0,1.0]
[1646534192741,0.00023867,39514.0,39511.0,0.44641046]
[1646534193341,0.25940616,39516.0,39511.0,0.44641046]
[1646534193642,0.00023867,39514.0,39511.0,0.44641046]
[1646534194640,0.62794393,39517.0,39511.0,0.44641046]
[1646534194886,0.00023867,39514.0,39511.0,0.44641046]
[1646534195890,0.25940616,39516.0,39511.0,0.44641046]
[1646534196086,0.00023867,39514.0,39511.0,0.44641046]
[1646534196786,0.20780219,39514.0,39511.0,0.44641046]
[1646534196988,0.20756352,39514.0,39511.0,0.44641046]
[1646534197287,0.20780219,39514.0,39511.0,0.44641046]
[1646534198086,0.20780219,39514.0,39511.0,0.65360297]
[1646534198286,0.20756352,39515.0,39511.0,0.65360297]
[1646534198731,0.00023867,39514.0,39511.0,0.65360297]
[1646534199531,0.20756352,39515.0,39511.0,0.65360297]
[1646534199732,0.00023867,39514.0,39511.0,0.65360297]
[1646534200333,0.00023867,39514.0,39513.0,0.17657597]
[1646534200733,0.20756352,39515.0,39513.0,0.17657597]
[1646534200933,0.20780219,39515.0,39513.0,0.17657597]
[1646534201937,0.20756352,39515.0,39513.0,0.17657597]
[1646534205083,0.20756352,39515.0,39511.0,0.65360297]
[1646534205283,0.00017962,39513.0,39511.0,0.65360297]
[1646534205486,0.00017962,39513.0,39511.0,0.44641046]
[1646534211183,0.00023868,39514.0,39511.0,0.65360297]
[1646534211581,0.20756352,39515.0,39511.0,0.65360297]
[1646534211780,0.00023867,39514.0,39511.0,0.65360297]
[1646534212680,0.20756352,39515.0,39511.0,0.65360297]
[1646534212880,0.0001156,39514.0,39511.0,0.65360297]
[1646534213935,0.20756352,39515.0,39511.0,0.65360297]
[1646534214131,0.0001156,39514.0,39511.0,0.65360297]
[1646534215131,0.20756352,39515.0,39511.0,0.65360297]
[1646534215334,0.0001156,39514.0,39511.0,0.65360297]
[1646534215736,0.0001156,39514.0,39513.0,0.20719251]
[1646534215937,0.0001156,39514.0,39513.0,0.335213]
[1646534216235,0.0021,39517.0,39513.0,0.12672]
[1646534216436,0.0021,39517.0,39516.0,0.20711804]
[1646534216635,0.00025478,39515.0,39514.0,0.21799296]
[1646534217034,0.00017514,39515.0,39514.0,0.52732898]
[1646534217423,0.00101895,39521.0,39514.0,0.52732898]
[1646534217424,0.20756352,39526.0,39515.0,0.95020601]
[1646534217617,0.20756352,39526.0,39520.0,0.20700099]
[1646534217817,0.20756352,39527.0,39524.0,0.16808728]
[1646534218419,0.25940616,39529.0,39524.0,0.16808728]
[1646534218420,0.20756352,39526.0,39524.0,0.16808728]
[1646534218717,0.20756352,39527.0,39524.0,0.16808728]
[1646534218920,0.20756352,39528.0,39524.0,0.16808728]
[1646534219720,0.20756352,39527.0,39524.0,0.16808728]
[1646534219925,0.20756352,39528.0,39524.0,0.16808728]
[1646534220120,0.20767907,39528.0,39524.0,0.16808728]
[1646534220320,0.00011555,39528.0,39524.0,0.16808728]
[1646534220521,0.20767907,39528.0,39524.0,0.16808728]
[1646534220923,0.20767907,39528.0,39518.0,0.20700099]
[1646534221131,0.20756352,39528.0,39518.0,0.20700099]
[1646534221432,0.20781825,39528.0,39518.0,0.20700099]
[1646534221632,0.20756352,39527.0,39517.0,0.20700099]
[1646534222031,0.20756352,39527.0,39522.0,0.1802554]
[1646534222434,0.00025474,39526.0,39522.0,0.1802554]
[1646534222834,0.00025474,39526.0,39522.0,0.01891021]
[1646534223434,0.20756352,39528.0,39522.0,0.01891021]
[1646534223734,0.00025474,39526.0,39522.0,0.01891021]
[1646534223934,0.00025474,39526.0,39519.0,0.001]
[1646534224534,0.00025474,39526.0,39517.0,0.20700099]
[1646534224734,0.20756352,39529.0,39517.0,0.20700099]
[1646534224985,0.00025475,39524.0,39519.0,0.20085918]
[1646534225683,0.00025475,39524.0,39516.0,0.36141574]
[1646534225886,0.3,39526.0,39516.0,0.20700099]
[1646534226084,0.3,39526.0,39515.0,0.01284601]
[1646534226085,0.3,39526.0,39515.0,0.207207]
[1646534226384,0.00025475,39523.0,39515.0,0.207207]
[1646534226785,0.00025475,39523.0,39516.0,0.17110479]
[1646534226985,0.00025475,39523.0,39520.0,0.15940878]
[1646534227186,0.47881618,39527.0,39520.0,0.15940878]
[1646534227491,0.47881618,39527.0,39515.0,0.00020601]
[1646534227492,0.00025476,39521.0,39515.0,0.00020601]
[1646534228385,0.17037451,39520.0,39515.0,0.00020601]
[1646534228641,0.17062927,39520.0,39515.0,0.00020601]
[1646534229440,0.17037451,39520.0,39515.0,0.00020601]
[1646534229641,0.3,39519.0,39515.0,0.00020601]
[1646534229844,0.17037451,39520.0,39515.0,0.00020601]
[1646534230844,0.18102363,39518.0,39515.0,0.00020601]
[1646534231244,0.17037451,39520.0,39515.0,0.00020601]
[1646534231544,0.002,39519.0,39515.0,0.00020601]
[1646534232145,0.002247,39519.0,39515.0,0.00020601]
[1646534233190,0.002,39519.0,39515.0,0.00020601]
[1646534233390,0.00224569,39519.0,39515.0,0.00020601]
[1646534233592,0.00024569,39519.0,39515.0,0.00020601]
[1646534234291,0.17703492,39521.0,39515.0,0.00020601]
[1646534234492,0.00024569,39519.0,39515.0,0.00020601]
[1646534235493,0.002,39520.0,39515.0,0.00020601]
[1646534235894,0.00024569,39519.0,39515.0,0.00020601]
[1646534236736,0.17703492,39521.0,39515.0,0.00020601]
[1646534236940,0.00023805,39519.0,39515.0,0.00020601]
[1646534237833,0.17703492,39521.0,39515.0,0.00020601]
[1646534238233,0.00023805,39519.0,39515.0,0.00020601]
[1646534239035,0.17703492,39521.0,39515.0,0.00020601]
[1646534239434,0.00023805,39519.0,39515.0,0.00020601]
[1646534240385,0.17703492,39521.0,39515.0,0.00020601]
[1646534240586,0.00023857,39519.0,39515.0,0.00020601]
[1646534241586,0.301,39520.0,39515.0,0.00020601]
[1646534241787,0.00023857,39519.0,39515.0,0.00020601]
[1646534242795,0.17703492,39521.0,39515.0,0.00020601]
[1646534242990,0.00023857,39519.0,39515.0,0.00020601]
[1646534243836,0.17703492,39521.0,39515.0,0.00020601]
[1646534244236,0.00023853,39519.0,39515.0,0.00020601]
[1646534244836,0.00014478,39519.0,39515.0,0.00020601]
[1646534245038,0.17703492,39521.0,39515.0,0.00020601]
[1646534245442,0.17903492,39521.0,39515.0,0.00020601]
[1646534245643,0.002,39521.0,39515.0,0.00020601]
[1646534246739,0.20893709,39524.0,39517.0,0.17100937]
[1646534246939,0.20893709,39524.0,39515.0,0.00020601]
[1646534247139,0.41630574,39524.0,39515.0,0.00020601]
[1646534247882,0.00025458,39521.0,39515.0,0.00020601]
[1646534248682,0.41630574,39524.0,39515.0,0.00020601]
[1646534248880,0.00023745,39520.0,39515.0,0.00020601]
[1646534249983,0.002,39522.0,39515.0,0.00020601]
[1646534250182,0.00023745,39520.0,39515.0,0.00020601]
[1646534251136,0.002,39522.0,39515.0,0.00020601]
[1646534251436,0.00023745,39520.0,39515.0,0.00020601]
[1646534252434,0.20893709,39524.0,39515.0,0.00020601]
[1646534252636,0.00022177,39520.0,39515.0,0.00020601]
[1646534252835,0.2087712,39524.0,39515.0,0.00020601]
[1646534253241,0.2087712,39524.0,39516.0,0.16056763]
[1646534254537,0.2087712,39524.0,39515.0,0.00020601]
[1646534255990,0.20736865,39523.0,39515.0,0.00020601]
[1646534256191,0.50736865,39523.0,39515.0,0.00020601]
[1646534257292,0.00025458,39522.0,39515.0,0.00020601]
[1646534257691,0.00025458,39522.0,39515.0,0.20705939]
[1646534258295,0.20736865,39523.0,39515.0,0.20705939]
[1646534258494,0.00023833,39522.0,39515.0,0.20705939]
[1646534258935,0.00023833,39522.0,39515.0,0.00020601]
[1646534259537,0.20736865,39523.0,39515.0,0.00020601]
[1646534259737,0.00023833,39522.0,39515.0,0.20705939]
[1646534260035,0.20760698,39522.0,39515.0,0.20705939]
[1646534260840,0.20736865,39522.0,39515.0,0.20705939]
[1646534261045,0.20760698,39522.0,39515.0,0.20705939]
[1646534261639,0.00023833,39522.0,39515.0,0.20705939]
[1646534262041,0.20736865,39523.0,39515.0,0.20705939]
[1646534262238,0.00023073,39522.0,39515.0,0.20705939]
[1646534262501,0.00023073,39522.0,39516.0,0.20685338]
[1646534262700,0.00023073,39522.0,39515.0,0.20705939]
[1646534263101,0.20736865,39523.0,39515.0,0.20705939]
[1646534263304,0.20736865,39523.0,39516.0,0.20685338]
[1646534263505,0.00023182,39522.0,39516.0,0.20685338]
[1646534264303,0.20736865,39523.0,39516.0,0.20685338]
[1646534264504,0.00023182,39522.0,39516.0,0.20685338]
[1646534265505,0.20736865,39523.0,39516.0,0.20685338]
[1646534265706,0.00022348,39522.0,39516.0,0.20685338]
[1646534265905,0.00022348,39522.0,39518.0,0.1597682]
[1646534266739,0.20736865,39523.0,39517.0,0.20685338]
[1646534266941,0.00022366,39522.0,39517.0,0.20685338]
[1646534267139,0.20259231,39523.0,39517.0,0.20685338]
[1646534267539,0.15458215,39525.0,39517.0,0.20685338]
[1646534267741,0.15458215,39525.0,39516.0,0.21005601]
[1646534267742,0.15278855,39523.0,39516.0,0.21005601]
[1646534267940,0.15278855,39523.0,39516.0,0.002]
[1646534268742,0.15278855,39523.0,39515.0,0.00020601]
[1646534268940,0.15278855,39523.0,39515.0,0.20090476]
[1646534270292,0.15278855,39523.0,39515.0,0.45947148]
[1646534270492,0.15278855,39523.0,39515.0,0.25877273]
[1646534271297,0.15278855,39523.0,39515.0,0.00020601]
[1646534271693,0.41199937,39523.0,39515.0,0.00020601]
[1646534272094,0.15278855,39523.0,39515.0,0.00020601]
[1646534272293,0.45278855,39523.0,39515.0,0.00020601]
[1646534273095,0.15278855,39523.0,39515.0,0.25877273]
[1646534274342,0.00023846,39524.0,39517.0,0.25856672]
[1646534274542,0.00023846,39524.0,39519.0,0.25856672]
[1646534275141,0.1196,39526.0,39519.0,0.25856672]
[1646534275341,0.00023847,39524.0,39521.0,0.19267521]
[1646534276444,0.55921082,39529.0,39521.0,0.19267521]
[1646534276641,0.00023851,39524.0,39522.0,0.16588546]
[1646534277488,0.20745246,39527.0,39521.0,0.40156694]
[1646534277689,0.00023851,39525.0,39521.0,0.40156694]
[1646534277889,0.00023851,39525.0,39522.0,0.20689173]
[1646534278289,0.00023851,39525.0,39523.0,0.20689173]
[1646534278492,0.00023851,39525.0,39523.0,0.27440173]
[1646534278688,0.20745246,39529.0,39523.0,0.27440173]
[1646534279195,0.0002385,39526.0,39525.0,0.20689173]
[1646534279792,0.0002385,39526.0,39524.0,0.02768]
[1646534280092,0.20745246,39532.0,39524.0,0.02768]
[1646534280293,0.00023849,39527.0,39523.0,0.05]
[1646534280497,0.00023849,39527.0,39522.0,0.1035]
[1646534280692,0.00023849,39527.0,39522.0,0.0535]
[1646534280893,0.00023849,39527.0,39522.0,0.0505]
[1646534281152,0.20745246,39529.0,39522.0,0.0505]
[1646534281352,0.0002385,39526.0,39522.0,0.0505]
[1646534281553,0.0002385,39526.0,39525.0,0.15828143]
[1646534281760,0.0002385,39526.0,39525.0,0.07215]
[1646534282352,0.36031234,39530.0,39525.0,0.07215]
[1646534282552,0.00023849,39527.0,39525.0,0.07215]
[1646534282752,0.00023849,39527.0,39523.0,0.2362306]
[1646534282954,0.35555083,39530.0,39523.0,0.2362306]
[1646534283151,0.14809837,39530.0,39523.0,0.2362306]
[1646534283353,0.20745246,39531.0,39523.0,0.2362306]
[1646534283552,0.37616465,39533.0,39523.0,0.2362306]
[1646534283553,0.20745246,39532.0,39523.0,0.2362306]
[1646534283953,0.20745246,39532.0,39523.0,0.44312233]
[1646534284154,0.32345246,39533.0,39523.0,0.2362306]
[1646534284900,0.1726069,39528.0,39521.0,0.50689173]
[1646534285097,0.26356771,39527.0,39520.0,0.20689173]
[1646534285303,0.26356771,39527.0,39518.0,0.25856672]
[1646534285304,0.26365573,39527.0,39518.0,0.20689173]
[1646534285500,0.26365573,39527.0,39517.0,0.1134]
[1646534285501,0.26365573,39527.0,39517.0,0.20689173]
[1646534285796,0.26365573,39527.0,39516.0,0.20689173]
[1646534285997,0.19186299,39520.0,39516.0,0.20689173]
[1646534286396,0.37845573,39527.0,39516.0,0.20689173]
[1646534287400,0.19653605,39519.0,39517.0,0.00025462]
[1646534288197,0.63766655,39527.0,39517.0,0.00025462]
[1646534288397,0.37845573,39527.0,39515.0,0.26009774]
[1646534288638,0.37845573,39527.0,39516.0,0.00025461]
[1646534289038,0.17854354,39522.0,39516.0,0.00025461]
[1646534289440,0.17854354,39522.0,39515.0,0.25709774]
[1646534289644,0.17854354,39522.0,39517.0,0.00014]
[1646534290240,0.17218975,39521.0,39517.0,0.00014]
[1646534290645,0.17218975,39521.0,39515.0,0.26009774]
[1646534290841,0.17854354,39522.0,39515.0,0.25709774]
[1646534291041,0.17854354,39522.0,39517.0,0.00025444]
[1646534292040,0.17854354,39522.0,39516.0,0.20689173]
[1646534292244,0.1148,39527.0,39517.0,0.00025444]
[1646534293090,0.1148,39527.0,39516.0,0.50689173]
[1646534293289,0.19598427,39522.0,39517.0,0.00025445]
[1646534293690,0.20519477,39525.0,39517.0,0.00025445]
[1646534294291,0.20519477,39525.0,39516.0,0.50689173]
[1646534294492,0.20519477,39525.0,39517.0,0.00025445]
[1646534295494,0.20519477,39525.0,39516.0,0.50689173]
[1646534295693,0.20519477,39525.0,39517.0,0.00024683]
[1646534295895,0.19194604,39523.0,39517.0,0.00024683]
[1646534296739,0.19194604,39523.0,39516.0,0.50689173]
[1646534296937,0.20519477,39525.0,39517.0,0.00024682]
[1646534297137,0.20519477,39525.0,39517.0,0.20713855]
[1646534298038,0.21244521,39523.0,39518.0,0.3]
[1646534298238,0.21244521,39523.0,39517.0,0.20713856]
[1646534298437,0.21244521,39523.0,39517.0,0.00024683]
[1646534299138,0.21244521,39523.0,39516.0,0.50689173]
[1646534299338,0.21244521,39523.0,39517.0,0.00023872]
[1646534300303,0.21244521,39523.0,39516.0,0.50689173]
[1646534300503,0.21244521,39523.0,39517.0,0.00023872]
[1646534301108,0.21244521,39523.0,39517.0,0.20713045]
[1646534301505,0.21244521,39523.0,39516.0,0.50689173]
[1646534301706,0.21244521,39523.0,39517.0,0.00023872]
[1646534302710,0.21244521,39523.0,39516.0,0.50689173]
[1646534303009,0.21244521,39523.0,39517.0,0.20713061]
[1646534304043,0.21244521,39523.0,39517.0,0.20689173]
[1646534304242,0.21244521,39523.0,39517.0,0.20713061]
[1646534304642,0.2123717,39523.0,39517.0,0.20713061]
[1646534305043,0.2123717,39523.0,39517.0,0.20689173]
[1646534305445,0.2123717,39523.0,39517.0,0.20713061]
[1646534305643,0.20519477,39525.0,39517.0,0.20713061]
[1646534306044,0.20519477,39525.0,39518.0,0.20689173]
[1646534306647,0.19513788,39523.0,39518.0,0.20689173]
[1646534307690,0.19513788,39523.0,39517.0,0.21013056]
[1646534308693,0.19513788,39523.0,39517.0,0.20989173]
[1646534308891,0.19513788,39523.0,39517.0,0.20713056]
[1646534309892,0.19513788,39523.0,39517.0,0.20689173]
[1646534310093,0.19513788,39523.0,39517.0,0.20713056]
[1646534310695,0.20519477,39525.0,39517.0,0.20713056]
[1646534310895,0.20519477,39525.0,39518.0,0.3]
[1646534311142,0.1148,39527.0,39518.0,0.50689173]
[1646534311343,0.1148,39527.0,39519.0,0.20689173]
[1646534311944,0.19572688,39525.0,39519.0,0.20689173]
[1646534312148,0.19572688,39525.0,39520.0,0.3]
[1646534312344,0.26883458,39527.0,39520.0,0.3]
[1646534312744,0.18693876,39529.0,39528.0,0.28460028]
[1646534312944,0.1814497,39529.0,39528.0,0.28460028]
[1646534313547,0.38043129,39529.0,39528.0,0.28460028]
[1646534313746,0.75719029,39529.0,39528.0,0.28460028]
[1646534315093,0.38043129,39529.0,39528.0,0.28460028]
[1646534315497,0.73219029,39529.0,39528.0,0.28460028]
[1646534316994,0.99140111,39529.0,39528.0,0.28460028]
[1646534317196,0.98140111,39529.0,39528.0,0.28460028]
[1646534317994,0.72219029,39529.0,39528.0,0.28460028]
[1646534318396,0.52296994,39529.0,39528.0,0.28460028]
[1646534319447,0.71985473,39529.0,39528.0,0.28460028]
[1646534319647,0.34309573,39529.0,39528.0,0.28460028]
[1646534319847,1.03090771,39529.0,39528.0,0.28460028]
[1646534323595,0.80517442,39529.0,39528.0,0.28460028]
[1646534324795,1.13716185,39529.0,39528.0,0.28460028]
[1646534325396,1.13704978,39529.0,39528.0,0.28460028]
[1646534329241,0.71468849,39529.0,39528.0,0.28460028]
[1646534329440,0.70948966,39529.0,39528.0,0.28460028]
[1646534330299,0.91489973,39529.0,39528.0,0.28460028]
[1646534330498,0.92037396,39529.0,39528.0,0.28460028]
[1646534331102,0.78304878,39529.0,39528.0,0.28460028]
[1646534331299,0.92037454,39529.0,39528.0,0.28460028]
[1646534331498,0.71496447,39529.0,39528.0,0.28460028]
[1646534331898,0.57763871,39529.0,39528.0,0.28460028]
[1646534334740,1.0,39528.0,39517.0,0.00023886]
[1646534334945,0.2593672,39521.0,39517.0,0.00023886]
[1646534335143,0.376747,39518.0,39513.0,0.01264]
[1646534335342,0.25940154,39516.0,39513.0,0.01264]
[1646534335542,0.376747,39515.0,39513.0,0.01264]
[1646534335741,0.17710761,39514.0,39513.0,0.01264]
[1646534335940,0.376747,39514.0,39513.0,0.01264]
[1646534337593,0.36996622,39514.0,39513.0,0.01264]
[1646534337991,0.376747,39513.0,39512.0,0.00023884]
[1646534338794,0.004,39515.0,39511.0,0.44641046]
[1646534338997,0.20746574,39517.0,39511.0,0.44664931]
[1646534339195,0.37681,39516.0,39511.0,0.44664931]
[1646534339595,0.37681,39517.0,39511.0,0.44664931]
[1646534339794,0.37681,39517.0,39514.0,0.18411374]
[1646534341346,0.37681,39517.0,39514.0,0.18435258]
[1646534342348,0.37681,39517.0,39514.0,0.18411374]
[1646534342553,0.37681,39517.0,39514.0,0.18433737]
[1646534342749,0.37681,39517.0,39514.0,0.10147396]
[1646534343551,0.37478566,39517.0,39514.0,0.10125033]
[1646534343754,0.37478566,39517.0,39514.0,0.10147396]
[1646534343952,0.37478566,39517.0,39514.0,0.00022363]
[1646534345118,0.5733585,39517.0,39514.0,0.00022363]
[1646534345916,0.5733585,39517.0,39511.0,0.44641046]
[1646534346319,0.376806,39516.0,39511.0,0.44641046]
[1646534347121,0.376806,39518.0,39511.0,0.44641046]
[1646534347419,0.20746574,39519.0,39511.0,0.44641046]
[1646534347420,0.376806,39517.0,39511.0,0.44641046]
[1646534347619,0.376806,39518.0,39511.0,0.44641046]
[1646534348021,0.20886355,39517.0,39511.0,0.61955902]
[1646534348222,0.20746574,39519.0,39511.0,0.44641046]
[1646534348422,0.20746574,39521.0,39512.0,0.3]
[1646534349067,0.32486574,39522.0,39512.0,0.3]
[1646534349274,0.32486574,39522.0,39517.0,0.21440371]
[1646534349468,0.376806,39521.0,39517.0,0.21440371]
[1646534349868,0.376806,39521.0,39517.0,0.21454354]
[1646534350771,0.376806,39521.0,39517.0,0.21440371]
[1646534350972,0.376806,39521.0,39517.0,0.21464787]
[1646534351173,0.376806,39521.0,39517.0,0.00024416]
[1646534351973,0.376806,39521.0,39516.0,0.20639633]
[1646534352171,0.376806,39521.0,39517.0,0.00024416]
[1646534353201,0.376806,39521.0,39516.0,0.38734291]
[1646534353397,0.376806,39521.0,39517.0,0.00024416]
[1646534354403,0.376806,39521.0,39516.0,0.38734291]
[1646534354702,0.376806,39521.0,39517.0,0.00023159]
[1646534355700,0.376806,39521.0,39511.0,0.66445047]
[1646534355701,0.17511279,39518.0,39511.0,0.66445047]
[1646534355902,0.55191879,39518.0,39517.0,0.00023159]
[1646534356570,0.71544265,39518.0,39517.0,0.00023159]
[1646534356763,0.71544265,39518.0,39511.0,0.44641046]
[1646534356764,1.48894265,39518.0,39511.0,0.44641046]
[1646534356970,0.06677495,39513.0,39511.0,0.44641046]
[1646534357164,0.376806,39512.0,39511.0,0.44641046]
[1646534361999,0.53856612,39512.0,39511.0,0.44641046]
[1646534362599,0.376806,39512.0,39511.0,0.44641046]
[1646534363101,0.376806,39512.0,39511.0,0.44610565]
[1646534367693,0.05972227,39516.0,39511.0,0.44610565]
[1646534367894,0.55604645,39515.0,39511.0,0.44610565]
[1646534368096,0.376806,39515.0,39511.0,0.44610565]
[1646534369095,0.58929187,39515.0,39511.0,0.44633004]
[1646534370098,0.58929187,39515.0,39511.0,0.44610565]
[1646534370296,0.58929187,39515.0,39511.0,0.44633004]
[1646534370495,0.88929187,39515.0,39511.0,0.44633004]
[1646534371002,0.57137379,39512.0,39511.0,0.44633004]
[1646534371249,0.92187379,39512.0,39511.0,0.44610565]
[1646534371445,1.39537379,39512.0,39511.0,0.44633004]
[1646534371647,1.60281756,39512.0,39511.0,0.44633004]
[1646534372346,1.60281756,39512.0,39511.0,0.44610565]
[1646534372649,1.74281756,39512.0,39511.0,0.44610565]
[1646534374549,1.74282116,39512.0,39511.0,0.44610565]
[1646534374752,1.53537379,39512.0,39511.0,0.44610565]
[1646534378846,1.53537379,39512.0,39502.0,0.36060999]
[1646534378847,0.09203843,39510.0,39502.0,0.01264]
[1646534379048,0.676806,39503.0,39502.0,0.01264]
[1646534379247,0.12305687,39503.0,39502.0,0.01264]
[1646534379446,0.0505,39506.0,39497.0,0.20689173]
[1646534379447,0.376806,39502.0,39497.0,0.20689173]
[1646534379646,0.376806,39502.0,39494.0,0.1952]
[1646534379647,0.376806,39502.0,39496.0,0.20689173]
[1646534379847,0.73853642,39502.0,39496.0,0.40457019]
[1646534380047,0.73853642,39502.0,39496.0,0.20689173]
[1646534380246,0.73853642,39502.0,39495.0,0.20689173]
[1646534380946,0.57694185,39502.0,39495.0,0.20689173]
[1646534381849,2.40472402,39498.0,39495.0,0.1660555]
[1646534382049,2.40472402,39498.0,39493.0,0.17433551]
[1646534382249,2.39901402,39498.0,39493.0,0.17433551]
[1646534382493,0.376894,39500.0,39493.0,0.17433551]
[1646534382696,0.376894,39500.0,39494.0,0.3]
[1646534382894,0.376894,39500.0,39493.0,0.38122724]
[1646534383295,0.376894,39500.0,39496.0,0.20007728]
[1646534383498,0.376894,39498.0,39495.0,0.00025364]
[1646534384000,0.427394,39498.0,39495.0,0.00025364]
[1646534384397,0.427394,39498.0,39489.0,0.45499436]
[1646534384398,0.19450022,39494.0,39489.0,0.45499436]
[1646534384596,0.376894,39493.0,39489.0,0.15499436]
[1646534385197,0.376894,39493.0,39489.0,0.36188609]
[1646534385395,0.376894,39497.0,39489.0,0.36188609]
[1646534385795,0.376894,39497.0,39489.0,0.15524801]
[1646534385997,0.376894,39497.0,39489.0,0.45524801]
[1646534386848,0.376894,39497.0,39489.0,0.45499436]
[1646534387051,0.376894,39497.0,39491.0,0.00025365]
[1646534387952,0.376894,39497.0,39489.0,0.45499436]
[1646534388154,0.376894,39497.0,39492.0,0.00024525]
[1646534389152,0.376894,39497.0,39489.0,0.15499436]
[1646534389153,0.376894,39497.0,39493.0,0.17732219]
[1646534389351,0.376894,39497.0,39493.0,0.17756743]
[1646534389551,0.55073042,39497.0,39493.0,0.00024524]
[1646534389755,1.32423042,39497.0,39493.0,0.00024524]
[1646534390010,1.37473042,39497.0,39493.0,0.00024524]
[1646534390409,1.37473042,39497.0,39488.0,0.001]
[1646534390612,1.37473042,39497.0,39493.0,0.00024524]